Cogmind - Beta 16 --- EXPLORER MODE // 2025.11.03 @ 09:17:01 Player: K.K.Y. Result: Destroyed by S-27 Virus with Autogun Performance ------------- Evolutions (3) 1500 Regions Visited (7) 1400 Robots Destroyed (76) 380 Value Destroyed (3406) 3406 Prototype IDs (5) 100 Alien Tech Used (0) 0 Bonus (900) 900 TOTAL SCORE: 7686 Bonus ------- Entered Garrisons 400 Used RIF Installer 500 Cogmind --------- Core Integrity 0/700 Matter 298/300 Energy 92/100 System Corruption 3% Temperature Cool (18) Movement Core (1400) Ox27 Location -7/Factory Parts ------- > --- POWER (2) -------- (None) > --- PROPULSION (4) --- (None) > --- UTILITY (6) ------ Huge Storage Unit Relay Coupler [NC] (30) Relay Coupler [Hunter] (23) > --- WEAPON (2) ------- Pulse Rifle > --- INVENTORY (25) --- Improved Coolant Injector Huge Storage Unit Structural Scanner Improved Sensor Array Signal Interpreter Power Shielding Layered Heavy Armor Plating Improved Powered Armor Relay Coupler [Swarmer] (39) Relay Coupler [Swarmer] (32) Relay Coupler [Swarmer] (41) Relay Coupler [Specialist] (28) Relay Coupler [Behemoth] (18) Heavy EM Shotgun Pulse Rifle Advanced Beam Rifle Mass Driver Heavy Mass Driver Improved Datajack Remote Datajack Plasma Cutter Peak State ------------ > --- POWER ------------ Deuterium Engine Light Angular Momentum Engine > --- PROPULSION ------- Improved Treads Advanced Treads Advanced Treads Medium Treads > --- UTILITY ---------- Cooling System Huge Storage Unit Weight Redist. System Improved Terrain Scanner Hacking Suite Relay Coupler [Swarmer] > --- WEAPON ----------- Wave Gun Quantum Rifle > --- INVENTORY -------- Light Deuterium Engine Light Nuclear Core Light Nuclear Core Huge Storage Unit Weight Redist. System Structural Scanner Improved Sensor Array Signal Interpreter Power Shielding Relay Coupler [Swarmer] Relay Coupler [Swarmer] Relay Coupler [Swarmer] Relay Coupler [Specialist] Relay Coupler [Specialist] High-powered Tractor Beam Heavy EM Shotgun Pulse Rifle Pulse Rifle Advanced Beam Rifle Heavy Particle Cannon Improved Datajack Remote Datajack Remote Datajack Mining Laser Plasma Cutter [Rating: 55] Favorites ----------- Power Deuterium Engine Engine Deuterium Engine Power Core Light Nuclear Core Propulsion Aluminum Leg Treads Advanced Treads Leg Aluminum Leg Utility Huge Storage Unit Device Weight Redist. System Storage Huge Storage Unit Processor Visual Processing Unit Hackware Hacking Suite Weapon Advanced Beam Rifle Energy Gun Advanced Beam Rifle Energy Cannon EM Pulse Cannon Ballistic Gun KE Penetrator Special Weapon Remote Datajack Build | -11 -10 -9 -8 -8 -7 -7 -7 ------- Run | Yrd Mat Mat Mat Gar Fac Gar Fac Slots Evolved 7 | . 1 2 2 . 2 . . Power 1 | . . . 1 . . . . Propulsion 2 | . . . 1 . 1 . . Utility 4 | . 1 2 . . 1 . . Weapon . | . . . . . . . . Parts Attached 69 | 6 5 6 17 3 1 20 11 Power 11 | 1 . . 3 1 . 5 1 Engine 6 | 1 . . 3 1 . 1 . Core 5 | . . . . . . 4 1 Reactor . | . . . . . . . . Propulsion 23 | 2 . 1 8 1 . 5 6 Treads 6 | . . . 3 1 . 2 . Leg 17 | 2 . 1 5 . . 3 6 Wheel . | . . . . . . . . Hover . | . . . . . . . . Flight . | . . . . . . . . Utility 21 | 2 3 4 3 1 1 5 2 Device 9 | 1 . 2 2 1 . 2 1 Storage 6 | 1 3 1 . . . 1 . Processor 1 | . . 1 . . . . . Hackware 5 | . . . 1 . 1 2 1 Protection . | . . . . . . . . Artifact . | . . . . . . . . Weapon 14 | 1 2 1 3 . . 5 2 Energy Gun 7 | 1 1 . 2 . . 2 1 Energy Cannon 3 | . . 1 1 . . 1 . Ballistic Gun 2 | . 1 . . . . 1 . Ballistic Cannon . | . . . . . . . . Launcher . | . . . . . . . . Special Weapon 2 | . . . . . . 1 1 Impact Weapon . | . . . . . . . . Slashing Weapon . | . . . . . . . . Piercing Weapon . | . . . . . . . . Special Melee Weapon . | . . . . . . . . Unidentified Prototypes 2 | . . . 2 . . . . Parts Lost 33 | . . . . . . 19 14 Power 7 | . . . . . . 5 2 Propulsion 11 | . . . . . . 6 5 Utility 9 | . . . . . . 5 4 Weapon 6 | . . . . . . 3 3 Highest Loss Streak 10 | . . . . . . 8 10 To Critical Strikes . | . . . . . . . . Average Backups 18 | 1 5 11 20 24 24 22 22 Power 1 | . . . 2 2 2 1 . Propulsion . | . . . . . . . . Utility 10 | . 4 7 10 12 12 11 13 Weapon 4 | . . 2 4 6 6 5 5 Tool/Special . | . . . . . . . . Unused Backups 35 | . . 3 5 2 . 5 20 Power 2 | . . . 1 . . 1 . Propulsion . | . . . . . . . . Utility 21 | . . 3 3 . . 3 12 Weapon 7 | . . . 1 . . 1 5 Tool/Special 5 | . . . . 2 . . 3 Average Slot Usage (%) 87 | . 98 99 98 93 91 67 74 Engine 9 | . 12 10 15 15 14 5 . Core 1 | . . . . . . 3 7 Treads 5 | . . . 2 18 20 7 . Leg 14 | . 25 20 21 . . 5 19 Device 14 | . 12 20 16 22 21 10 4 Storage 13 | . 23 20 16 9 7 7 7 Processor 3 | . . 9 7 . . . . Hackware 7 | . . . . 8 14 14 22 Energy Gun 9 | . 22 11 9 16 14 5 . Energy Cannon 4 | . . 8 5 . . 1 6 Special Weapon 1 | . . . . . . 1 5 Peak Build Rating 55 | 6 10 20 38 41 43 55 47 Average Rating 30 | 3 8 19 33 38 42 36 39 On Entrance 24 | . 6 10 20 38 40 43 38 Avg Prop Armor Cover (%) 8 | . . . . . . 10 6 Naked Turns . | . . . . . . . . Heaviest Build 114 | 18 55 99 114 107 105 112 96 Greatest Support 101 | 20 20 29 72 72 70 101 63 Greatest Overweight (x) 29 | 3 2 3 4 2 1 29 4 Average Overweight (x) 2 | 1 1 2 1 1 1 2 1 Largest Inventory Capacity 25 | 10 20 25 25 25 25 25 25 Average Capacity 23 | 9 18 23 25 25 25 25 25 Most Carried 25 | 4 9 15 25 25 25 25 25 Average Carried 18 | 1 5 11 20 24 24 23 24 Final Capacity 25 | 10 20 25 25 25 25 25 25 Final Carried 25 | 1 9 15 25 25 24 25 23 Class Distribution -------------------- 66% | Hacker-Mutant 33% | Bothacker-Mutant Dominant Class ---------------- Hacker-Mutant | -10/Materials Hacker-Mutant | -9/Materials Hacker-Mutant | -8/Materials Hacker-Mutant | -8/Garrison Hacker-Mutant | -7/Factory Bothacker-Mutant | -7/Garrison Bothacker-Mutant | -7/Factory Resources | -11 -10 -9 -8 -8 -7 -7 -7 ----------- Run | Yrd Mat Mat Mat Gar Fac Gar Fac Matter Collected 1335 | 254 230 164 224 37 . 219 207 Remotely 22 | . . . . . . 22 . Salvage Created 2975 | . 221 385 914 402 . 632 421 Parts 159 | . 15 30 38 20 . 30 26 Haulers Intercepted . | . . . . . . . . Recyclers Shooed . | . . . . . . . . Parts Field Recycled . | . . . . . . . . Retrieved Matter . | . . . . . . . . Parts Self-Destructed . | . . . . . . . . Prevented . | . . . . . . . . Parts Restored . | . . . . . . . . Kills | -11 -10 -9 -8 -8 -7 -7 -7 ------- Run | Yrd Mat Mat Mat Gar Fac Gar Fac Combat Hostiles Destroyed 66 | . 6 9 16 8 . 16 11 Guns 39 | . 6 4 3 8 . 14 4 Cannons 24 | . . 5 10 . . 2 7 AOE 1 | . . . 1 . . . . Classes Destroyed 9 | . 3 3 2 1 . . . Worker 5 | . . 2 3 . . . . Recycler 1 | . . . 1 . . . . Watcher 4 | . 2 1 1 . . . . Swarmer 19 | . 4 3 2 . . 6 4 Grunt 26 | . 2 3 9 5 . 4 3 Duelist 3 | . . 1 . . . 1 1 Sentry 7 | . . 2 3 1 . 1 . Hunter 5 | . . . 2 . . 3 . Programmer 6 | . . . . 2 . 1 3 Best Kill Streak 7 | . 3 4 7 3 . 4 4 Combat Bots Only 4 | . 2 3 4 3 . 4 4 Max Kills in Single Turn 3 | . 1 3 3 1 . 1 1 Gunslinging . | . . . . . . . . Exploded 1 | . . . 1 . . . . Melee . | . . . . . . . . Uniques/NPCs Destroyed . | . . . . . . . . Combat | -11 -10 -9 -8 -8 -7 -7 -7 -------- Run | Yrd Mat Mat Mat Gar Fac Gar Fac Hostile Shots Fired 643 | . 23 26 77 46 . 304 167 Missed 162 | . 6 10 31 6 . 64 45 Hits 481 | . 17 16 46 40 . 240 122 Melee 11 | . . . . . . 1 10 Projectile 470 | . 17 16 46 40 . 239 112 Critical Strikes 22 | . . . 3 6 . 5 8 Part Disruptions 1 | . . . . . . . 1 Damage Taken 4278 | . 94 103 432 529 . 2012 1108 Core 949 | . 15 12 59 159 . 421 283 Absorbed by Shields 190 | . . . . . . 54 136 Ignored by Resistances 2619 | . 66 66 261 249 . 1227 750 Regen/Repaired (Parts) 110 | . . . . . 110 . . Core Remaining (%) 87 | 100 94 97 . 60 . . . Volleys Fired 234 | . 12 14 41 26 . 75 66 Largest 2 | . 2 2 2 2 . 2 1 Hottest 175 | . 85 108 126 122 . 175 75 Shots Fired 318 | . 24 28 72 35 . 93 66 Gun 208 | . 24 14 32 35 . 80 23 Cannon 100 | . . 14 40 . . 11 35 Launcher . | . . . . . . . . Special 10 | . . . . . . 2 8 Kinetic 27 | . . . . . . 27 . Thermal 175 | . . . 18 35 . 64 58 Explosive . | . . . . . . . . Electromagnetic 106 | . 24 28 54 . . . . Robot Hit Streak 41 | . 20 29 18 20 . 28 41 Robot Miss Streak 3 | . . 1 3 1 . 1 1 Penetration Max . | . . . . . . . . Secondary Targets 3 | . . . . . . 3 . Max Gunslinging Chain 1 | . . . . . . 1 . Shots Hit Robots 268 | . 20 21 59 31 . 74 63 Core Hits 114 | . 10 14 30 16 . 25 19 Critical Kills . | . . . . . . . . Critical Parts Destroyed . | . . . . . . . . Critical Strikes 3 | . . . 1 1 . . 1 Burn 3 | . . . 1 1 . . 1 Melee Attacks . | . . . . . . . . Impact . | . . . . . . . . Slashing . | . . . . . . . . Piercing . | . . . . . . . . Sneak Attacks . | . . . . . . . . Combat Hostiles . | . . . . . . . . Follow-up Attacks . | . . . . . . . . Damage Inflicted 6314 | . 321 548 1683 640 . 1804 1318 Guns 3573 | . 321 178 471 640 . 1579 384 Cannons 2257 | . . 205 893 . . 225 934 Explosions 484 | . . 165 319 . . . . Melee . | . . . . . . . . Ramming . | . . . . . . . . Kinetic 392 | . . . . . . 392 . Thermal 4154 | . . 165 619 640 . 1412 1318 Explosive . | . . . . . . . . Electromagnetic 1768 | . 321 383 1064 . . . . Impact . | . . . . . . . . Slashing . | . . . . . . . . Piercing . | . . . . . . . . Highest Corruption 3 | . . . . 2 . . 3 Average Corruption 1 | . . . . 2 . . 1 Corruption Purged . | . . . . . . . . Corruption Blocked . | . . . . . . . . Effects 14 | . . . . 10 . . 4 Message Errors 4 | . . . . 4 . . . Matter Fused 2 | . . . . 1 . . 1 Heat Flow Errors 2 | . . . . 2 . . . Energy Discharges 1 | . . . . . . . 1 Parts Fused 2 | . . . . . . . 2 Data Loss (minor) 1 | . . . . 1 . . . Data Loss (major) 1 | . . . . 1 . . . Misfires 1 | . . . . 1 . . . Overload Shots . | . . . . . . . . Overflow Damage 21 | . . . . . . . 21 Projectiles 21 | . . . . . . . 21 Explosions . | . . . . . . . . Melee . | . . . . . . . . Knockbacks . | . . . . . . . . Impact . | . . . . . . . . Kinetic . | . . . . . . . . Secondary . | . . . . . . . . Self-Inflicted Damage . | . . . . . . . . Shots . | . . . . . . . . Rammed . | . . . . . . . . Targets Rammed 1 | . . . . . . 1 . Kicked 1 | . . . . . . 1 . Crushed . | . . . . . . . . Highest Temperature 668 | . 162 174 534 668 . 556 260 Average Temperature 145 | . 52 49 157 238 . 207 107 Received Heat Transfer 1807 | . 42 87 333 414 . 570 361 Effects 47 | . . . 11 18 . 18 . Shutdowns 13 | . . . 4 5 . 4 . Energy Bleed 1 | . . . . . . 1 . Interference 9 | . . . 3 3 . 3 . Matter Decay 3 | . . . 1 2 . . . Short Circuit 4 | . . . 2 2 . . . Damage (minor) 4 | . . . 1 1 . 2 . Damage (major) 10 | . . . . 3 . 7 . Damage (core) 3 | . . . . 2 . 1 . Siege Activations . | . . . . . . . . Martial Activations . | . . . . . . . . Shielding Activations . | . . . . . . . . Robots Disrupted . | . . . . . . . . Combat Hostiles . | . . . . . . . . Robots Corrupted 1 | . . . 1 . . . . Combat Hostiles 1 | . . . 1 . . . . Parts Fried 8 | . 1 2 5 . . . . Impact Corruptions . | . . . . . . . . Robots Melted 1 | . . . 1 . . . . Combat Hostiles 1 | . . . 1 . . . . Parts Melted 15 | . . . 1 2 . 6 6 Heat Transferred 6247 | . . 100 1079 1221 . 1701 2146 Parts Sabotaged . | . . . . . . . . Parts Stolen . | . . . . . . . . Parts Stripped . | . . . . . . . . Power Chain Reactions 4 | . . . 4 . . . . Alert | -11 -10 -9 -8 -8 -7 -7 -7 ------- Run | Yrd Mat Mat Mat Gar Fac Gar Fac Maximum Alert Level 1 | . . . . 1 . 1 . Low Security (%) 85 | 100 100 100 100 61 100 56 100 Level 1 14 | . . . . 38 . 43 . Level 2 . | . . . . . . . . Level 3 . | . . . . . . . . Level 4 . | . . . . . . . . Level 5 . | . . . . . . . . High Security . | . . . . . . . . Max Security . | . . . . . . . . Peak Influence 394 | . 50 74 98 243 94 394 153 Initial 153 | . . . . . 94 . 153 Average 75 | . 8 10 15 162 48 202 30 Influence Increases 2075 | . 179 327 453 243 6 584 283 Destroy 0b10 Robot/C 1320 | . 120 180 320 160 . 320 220 Destroy 0b10 Robot/NC 50 | . 10 15 25 . . . . Destroy Leader 278 | . 34 62 82 10 . 30 60 Successful Hack 49 | . . 21 3 8 6 8 3 Disable Machine 32 | . . 20 12 . . . . Anti-Garrison Action 250 | . . . . 50 . 200 . Destroy Structure 36 | . . 14 11 . . 11 . Lose Combat Pursuer 60 | . 15 15 . 15 . 15 . Influence Decreases 2035 | . 179 327 453 . 249 190 637 Entered New Map 390 | . . . . . 149 . 241 Time Decay 1382 | . 179 327 453 . 100 . 323 Lost Part 263 | . . . . . . 190 73 Squads Dispatched 7 | . . 2 1 . . . 4 Investigation 2 | . . 1 . . . . 1 Extermination 1 | . . . . . . . 1 Reinforcement 2 | . . 1 1 . . . . Assault . | . . . . . . . . Garrison 2 | . . . . . . . 2 Intercept . | . . . . . . . . Searches Triggered . | . . . . . . . . Construction Impeded . | . . . . . . . . Haulers Reinforced . | . . . . . . . . Active Scanning Responses . | . . . . . . . . Cargo Convoy Interrupts . | . . . . . . . . Stealth | -11 -10 -9 -8 -8 -7 -7 -7 --------- Run | Yrd Mat Mat Mat Gar Fac Gar Fac Distress Signals 8 | . 3 3 2 . . . . Communications Jammed . | . . . . . . . . Distress Signals . | . . . . . . . . Times Spotted 87 | . 8 17 21 8 1 17 15 Peak Tracking Total 6 | . 3 4 6 3 1 3 4 Tactical Retreats 4 | . 1 1 . 1 . 1 . Traps | -11 -10 -9 -8 -8 -7 -7 -7 ------- Run | Yrd Mat Mat Mat Gar Fac Gar Fac Traps Triggered 9 | . . . . 2 . 6 1 Indirectly . | . . . . . . . . Trap Hack Attempts . | . . . . . . . . Triggered . | . . . . . . . . Disarmed 6 | . . 6 . . . . . Reprogrammed . | . . . . . . . . Reused . | . . . . . . . . Traps Extracted . | . . . . . . . . Installed . | . . . . . . . . Triggered . | . . . . . . . . Machines | -11 -10 -9 -8 -8 -7 -7 -7 ---------- Run | Yrd Mat Mat Mat Gar Fac Gar Fac Machines Disabled 11 | . . 5 3 1 . 2 . Max in Single Turn 5 | . . 5 1 1 . 1 . Garrison Relay 3 | . . . . 1 . 2 . Machines Repaired . | . . . . . . . . Machines Dismantled . | . . . . . . . . Machines Sabotaged . | . . . . . . . . Overloaded Fab Kills . | . . . . . . . . Hacking | -11 -10 -9 -8 -8 -7 -7 -7 --------- Run | Yrd Mat Mat Mat Gar Fac Gar Fac Machines Accessed 26 | . 3 10 5 1 3 2 2 Terminals 16 | . 2 7 2 1 1 2 1 Fabricators 1 | . . . . . . . 1 Repair Stations 2 | . . . 1 . 1 . . Recycling Units 4 | . 1 2 1 . . . . Scanalyzers 1 | . . 1 . . . . . Garrison Access 2 | . . . 1 . 1 . . Total Hacks 59 | . 7 29 10 2 4 2 5 Successful 41 | . 4 21 8 1 4 2 1 Failed 18 | . 3 8 2 1 . . 4 Catastrophic 1 | . . 1 . . . . . Database Lockouts . | . . . . . . . . Manual . | . . . . . . . . Terminals 40 | . 5 23 5 2 1 2 2 Fabricators 3 | . . . . . . . 3 Repair Stations 4 | . . . 2 . 2 . . Recycling Units 7 | . 2 3 2 . . . . Scanalyzers 3 | . . 3 . . . . . Garrison Access 2 | . . . 1 . 1 . . Terminal Hacks 25 | . 2 15 3 1 1 2 1 Record 2 | . 1 1 . . . . . Prototype ID Bank 2 | . 1 1 . . . . . Open DSF 2 | . . . . . 1 . 1 Level Access Points 1 | . . 1 . . . . . Emergency Access Points 5 | . . 3 . 1 . 1 . Repair Station Index 1 | . . 1 . . . . . Scanalyzer Index 1 | . . 1 . . . . . Locate Traps 4 | . . 3 1 . . . . Disarm Traps 1 | . . 1 . . . . . Surveillance Status 1 | . . 1 . . . . . Registered Components 1 | . . . 1 . . . . Registered Prototypes 1 | . . 1 . . . . . Zone Layout 2 | . . 1 1 . . . . Patrol Navigation 1 | . . . . . . 1 . Fabricator Hacks . | . . . . . . . . Repair Station Hacks 4 | . . . 2 . 2 . . Scan Component 2 | . . . 1 . 1 . . Repair 2 | . . . 1 . 1 . . Recycling Unit Hacks 7 | . 2 3 2 . . . . Report Inventory 4 | . 1 2 1 . . . . Retrieve Components 3 | . 1 1 1 . . . . Scanalyzer 3 | . . 3 . . . . . Retrieve Study 3 | . . 3 . . . . . Garrison Access Hacks 2 | . . . 1 . 1 . . Unlock Access 2 | . . . 1 . 1 . . Unauthorized Hacks . | . . . . . . . . Terminals . | . . . . . . . . Fabricators . | . . . . . . . . Repair Stations . | . . . . . . . . Recycling Units . | . . . . . . . . Scanalyzers . | . . . . . . . . Garrison Access . | . . . . . . . . Data Cores Recovered . | . . . . . . . . Used . | . . . . . . . . Hacking Detections 20 | . 3 8 3 1 2 1 2 Full Trace Events 3 | . . 2 . . . . 1 Feedback Events . | . . . . . . . . Feedback Blocked . | . . . . . . . . Robot Schematics Acquired . | . . . . . . . . Robots Built . | . . . . . . . . Authchips . | . . . . . . . . Time . | . . . . . . . . Total Robot Build Rating . | . . . . . . . . Part Schematics Acquired . | . . . . . . . . Parts Built . | . . . . . . . . Authchips . | . . . . . . . . Time . | . . . . . . . . Total Part Build Rating . | . . . . . . . . Part Studies Acquired 2 | . . 2 . . . . . Parts Repaired 1 | . . . . . 1 . . Time 51 | . . . 32 . 19 . . Parts Recycled . | . . . . . . . . Recycled Matter . | . . . . . . . . Retrieved Matter . | . . . . . . . . Retrieved Components 15 | . 2 3 10 . . . . Parts Scanalyzed . | . . . . . . . . Part Schematics Acquired . | . . . . . . . . Parts Damaged . | . . . . . . . . Bothacking | -11 -10 -9 -8 -8 -7 -7 -7 ------------ Run | Yrd Mat Mat Mat Gar Fac Gar Fac Used RIF Installer 1 | . . . . 1 . . . Robots Hacked 2 | . . . . . . . 2 Non-combat 1 | . . . . . . . 1 Combat 1 | . . . . . . . 1 Robot Hacks Applied 2 | . . . . . . . 2 parse_system 1 | . . . . . . . 1 streamctrl_low 1 | . . . . . . . 1 Relay Couplers Released 12 | . . . . 4 . 8 . Machine Destruction 12 | . . . . 4 . 8 . Attached 4 | . . . . . 1 2 1 Fabnet Peak Effective % . | . . . . . . . . Robots Rewired . | . . . . . . . . Allies Hacked . | . . . . . . . . Hacks Repelled . | . . . . . . . . Allies | -11 -10 -9 -8 -8 -7 -7 -7 -------- Run | Yrd Mat Mat Mat Gar Fac Gar Fac Total Allies 1 | . . . . . . . 1 Largest Group 1 | . . . . . . . 1 Highest-Rated Group 8 | . . . . . . . 8 Highest-Rated Ally 8 | . . . . . . . 8 Total Orders . | . . . . . . . . Ally Attacks . | . . . . . . . . Total Damage . | . . . . . . . . Kills . | . . . . . . . . Allies Corrupted . | . . . . . . . . Allies Melted . | . . . . . . . . Intel | -11 -10 -9 -8 -8 -7 -7 -7 ------- Run | Yrd Mat Mat Mat Gar Fac Gar Fac Active Infowar (turns) 4391 | 87 544 1146 1296 581 153 584 . Optics 2393 | . . 1145 1248 . . . . Sensors 2695 | 87 544 1146 918 . . . . Terrain 1635 | . . . 317 581 153 584 . Traps 2 | . . . 2 . . . . Robot Analysis Total . | . . . . . . . . Derelict Logs Recovered . | . . . . . . . . Drone Launches . | . . . . . . . . Drone Recoveries . | . . . . . . . . Exploration | -11 -10 -9 -8 -8 -7 -7 -7 ------------- Run | Yrd Mat Mat Mat Gar Fac Gar Fac Turns Passed 6223 | 119 544 1146 1366 682 153 1444 769 Spaces Moved 1928 | 58 213 317 449 208 55 379 249 Core 30 | 25 . . . . . 5 . Treads 472 | . . . 53 208 55 156 . Legs 1426 | 33 213 317 396 . . 218 249 Wheels . | . . . . . . . . Hover . | . . . . . . . . Flight . | . . . . . . . . Fastest Speed 50 | 50 120 260 196 225 230 230 187 Average Speed 268 | 151 231 304 250 282 230 316 240 Slowest Speed 1500 | 200 260 330 465 305 230 1500 410 Overloaded Moves . | . . . . . . . . Propulsion Burnouts . | . . . . . . . . Robots Hopped . | . . . . . . . . Potential Cave-ins . | . . . . . . . . Cave-ins Triggered . | . . . . . . . . Exploration Rate (%) 26 | 4 47 40 38 27 2 43 8 Regions Visited 7 Branch Regions . Pre-discovered Areas . | . . . . . . . . Known Exits Taken 5 | 1 1 1 1 . 1 . . Unknown Exits Taken . | . . . . . . . . Scrap Searched . | . . . . . . . . Spaces Dug 1 | . . . . . . 1 . Terrain Destroyed 24 | . . 13 9 . . 2 . Melee . | . . . . . . . . Projectile 1 | . . . . . . 1 . AOE 22 | . . 13 9 . . . . Terrain Rammed . | . . . . . . . . Walls Destroyed . | . . . . . . . . Machines Disabled . | . . . . . . . . Actions | -11 -10 -9 -8 -8 -7 -7 -7 --------- Run | Yrd Mat Mat Mat Gar Fac Gar Fac Total 2684 | 89 243 477 623 278 81 538 355 Wait 283 | 19 . 109 71 22 23 15 24 Move 1921 | 57 212 316 448 207 55 377 249 Hop . | . . . . . . . . Pick Up 84 | 7 11 18 25 7 1 14 1 Fast Attach 19 | . . . 6 1 . 4 8 Attach 41 | 6 4 5 6 3 2 12 3 Detach 11 | . 2 3 3 2 . 1 . Swap 16 | . 1 2 5 . . 6 2 Drop 49 | . 1 10 18 8 . 10 2 Fire 234 | . 12 14 41 26 . 75 66 Melee . | . . . . . . . . Ram . | . . . . . . . . Kick 1 | . . . . . . 1 . Crush . | . . . . . . . . Escape Stasis 25 | . . . . 2 . 23 . Rewire . | . . . . . . . . Trap . | . . . . . . . . Miscellaneous . | . . . . . . . . Route ------- -11/Scrapyard -10/Materials (discovered 3 exits: *Mat / *Min x2) -9/Materials (discovered 3 exits: *Mat x3) -8/Materials (discovered 2 exits: *Sto / Gar) -8/Garrison -7/Factory -7/Garrison -7/Factory History --------- Turn | Location | Event 11 | -11/Scrapyard | Identified exit to Materials 11 | -11/Scrapyard | Discovered exit to Materials (range 16) 120 | -11/Scrapyard | Entered Materials 120 | -10/Materials | Evolved 1 slot: Utility x1 121 | -10/Materials | Identified exit to Mines 121 | -10/Materials | Discovered exit to Mines (range 8) 315 | -10/Materials | Build established: Hacker-Mutant 321 | -10/Materials | Discovered exit to Mines (range 8) 565 | -10/Materials | Identified exit to Materials 565 | -10/Materials | Discovered exit to Materials (range 16) 664 | -10/Materials | Entered another Materials area 664 | -9/Materials | Evolved 2 slots: Utility x2 1387 | -9/Materials | Identified exit to Materials 1810 | -9/Materials | Entered another Materials area 1810 | -8/Materials | Evolved 2 slots: Power x1, Propulsion x1 1862 | -8/Materials | Identified exit to Storage 1862 | -8/Materials | Discovered exit to Storage (range 16) 3084 | -8/Materials | Identified exit to Garrison 3176 | -8/Materials | Entered Garrison 3214 | -8/Garrison | Installed Relay Interface Framework 3286 | -8/Garrison | Garrison Relay disabled 3298 | -8/Garrison | Triggered checkpoint 3572 | -8/Garrison | Triggered checkpoint 3634 | -8/Garrison | Triggered checkpoint 3830 | -8/Garrison | Identified exit to Factory 3830 | -8/Garrison | Discovered exit to Factory (range 12) 3858 | -8/Garrison | Entered Factory 3858 | -7/Factory | Evolved 2 slots: Propulsion x1, Utility x1 3901 | -7/Factory | Repaired Adv. Treads 4011 | -7/Factory | Identified exit to Garrison 4011 | -7/Factory | Entered Garrison 4065 | -7/Garrison | Triggered checkpoint 4108 | -7/Garrison | Garrison Relay disabled 4163 | -7/Garrison | Heavy support dispatched to Factory 4347 | -7/Garrison | Triggered checkpoint 4437 | -7/Garrison | Build established: Bothacker-Mutant 4460 | -7/Garrison | Lost 5 parts (2p3n) 4516 | -7/Garrison | Heavy support dispatched to Factory 4569 | -7/Garrison | Triggered checkpoint 4708 | -7/Garrison | Lost 8 parts (2p2n2u2w) 4915 | -7/Garrison | Identified exit to Factory 4915 | -7/Garrison | Discovered exit to Factory (range 13) 5015 | -7/Garrison | Triggered checkpoint 5122 | -7/Garrison | Core integrity fell below 50% 5191 | -7/Garrison | Lost 4 parts (1n2u1w) 5197 | -7/Garrison | Found Imp. Powered Armor 5301 | -7/Garrison | Garrison Relay disabled 5455 | -7/Garrison | Entered Factory 5885 | -7/Factory | Lost 3 parts (1n1u1w) 6111 | -7/Factory | Garrison activated, responded to threat 6122 | -7/Factory | Core integrity fell below 20% 6224 | -7/Factory | Destroyed by S-27 Virus with Autogun Last Messages --------------- 06164_ System corrupted: Imp. Titanium Leg fused. 06174_ Carbon-fiber Leg destroyed. 06178_ Aluminum Leg melted. 06178_ G-47 Trooper destroyed. 06180_ S-27 Virus destroyed. 06193_ Remote Datajack destroyed. 06194_ VTOL Module melted. 06194_ S-27 Virus destroyed. 06196_ System corrupted: Lgt. Nuclear Core fused. 06200_ P-60 Hacker suffers critical hit (Burn). 06202_ P-60 Hacker destroyed. 06212_ K-01 Serf collects debris. 06215_ Relay Coupler [Specialist] destroyed. 06215_ K-01 Serf collects debris. 06217_ Imp. Titanium Leg destroyed. 06219_ K-01 Serf collects debris. 06222_ Lgt. Nuclear Core destroyed. 06224_ K-01 Serf collects debris. Map ----- +----------------------------------------------------+ | ?????????????????????????????????????????????????? | | ?????????????????????????????????????????????????? | | ?????????????????????????????????????????????????? | | ?????????????????????????????????????????????????? | | ?????????????????????????????????????????????????? | | ?????????????????????????????????????????????????? | | ???????????????????????????????? ??????????????? | | ???????????????????????????????? ????????????? | | ????????????????????????????????% #?????????? | | ???????????????????????????????? ^ #?????????? | | ???????????????????????????????? %#?????????? | | ???????????????????????????????? #?????????? | | ???????????????????????????????? #?????????? | | ???????????????????????????????# #?????????? | | ???????????????????????????????# #?????????? | | ???????????????????????????????# #?????????? | | ???????????????????????????????# #?????????? | | ???????????????????????????????# #?????????? | | ??????????????????############## #?????????? | | ??????????????????# # #?????????? | | ??????????????????# # ########??? | | ??????????????????# # ?? | | ??????????????????# #[ ?? | | ??????????????????+ %+% ?? | | ??????????????????# k =#% %"""" """" ?? | | ??????????????????# @% # |"""" """"?????? | | ??????????????????# k # """" """" ?? | | ??????????????????# u # ?? | | ??????????????????#s # ="""" """" ???? | | ?????????????????%ss # """" """??????? | | ??????????????? ## # """" """"?????? | | ?????????????""???############## #? | | ???????????????????????????????# """" """" ?? | | ???????????????????????????????# """" """" ????? | | ????????????????????????######## """"""" " ???? | | ????????????????? ?? | | ????????????????????????######## """" """" ???? | | ???????????????????????????????# """" ""?? ?? | | ???????????????????????????????# """" """" ## | | ???????????????????????????????# | | ???????????????????????????????# """" """" | | ???????????????????????????????# """" """" | | ???????????????????????????????# """" """" | | ???????????????????????????????# | | ???????????????????????????????# """" """" | | ???????????????????????????????# """" """" | | ???????????????????????????????#! """" """" | | ????????????????????############ | | ????????????????? """" """" | | ????????????????? """" """" | +----------------------------------------------------+ Best States ------------- Heat Dissipation 56 Energy Generation 27 Energy Capacity 455 Matter Stores 500 Matter Capacity 500 Sight Range 18 Robot Scan Range 15 Terrain Scan Range 16 Terrain Scan Density 10 Additional Mass Support 6 Resistance: KI 35 Resistance: TH 35 Resistance: EX 35 Resistance: EM 35 Resistance: I 35 Resistance: S 35 Resistance: P 35 Evasion (%) 55 Recoil Reduction 4 Offensive Hacking 30 Relay Coupler Types 4 Relay Coupler Value 136 Item Schematics ----------------- None Robot Schematics ------------------ None Fabricated ------------ Nothing Repaired ---------- Adv. Treads | 35% | -7/Factory Studied --------- Datajack | -9/Materials | Hacked Plasma Cutter | -9/Materials | Hacked Alien Tech Used ----------------- None Achievements -------------- Mindtrick Challenges ------------ None Game ------ Seed MetaDroneWarhead Manual? 0 Play Time 00:38:48 Cumulative 15.4 hours Start 2025.11.03 @ 08:40:03 End 2025.11.03 @ 09:17:01 Sessions 1 Manual Loads 0 Difficulty Explorer Special Mode None Game No. 19 Rogue 0 Adventurer 0 Explorer 19 Win Type - Total 0 Types 0/0/0/0/0/0/0/0/0/0 Lore% 23 Gallery% 27 Achievement% 25 Wizard Run 0 Options --------- Layout 1 ASCII 0 Keyboard 0 Movement Mouse Keybinds 0 Fullscreen 1 Font 24/Smallcaps Map View 50x35 Zoom Use 0% Tactical HUD 1 Map Filters NONE Filters NONE Steam 1 RUN: cea0a6ee-654f-490c-b866-4380b4fd8ee5